bitfinex-derivatives/quotes_BNBF0:USTF0_20250617
["timestamp","ask_amount","ask_price","bid_price","bid_amount"]
[1750135226942,0.98798449,655.56,655.46,1.173]
[1750135227146,0.98798449,655.6,655.46,1.173]
[1750135227344,0.98798449,655.59,655.46,1.173]
[1750135227648,0.98798449,655.58,655.46,1.173]
[1750135227851,0.98798449,655.57,655.46,1.173]
[1750135228048,0.98798449,655.56,655.46,1.173]
[1750135228348,0.98798449,655.55,655.46,1.173]
[1750135228548,0.98798449,655.54,655.46,1.173]
[1750135228750,0.98798449,655.59,655.46,1.173]
[1750135228949,0.98798449,655.58,655.46,1.173]
[1750135229248,0.98798449,655.57,655.46,1.173]
[1750135229446,0.98798449,655.56,655.46,1.173]
[1750135229649,0.98798449,655.55,655.46,1.173]
[1750135229852,0.98798449,655.59,655.46,1.173]
[1750135230052,0.98798449,655.58,655.46,1.173]
[1750135230252,0.98798449,655.57,655.46,1.173]
[1750135230451,0.98798449,655.56,655.46,1.173]
[1750135230649,0.98798449,655.55,655.46,1.173]
[1750135230950,0.98798449,655.59,655.46,1.173]
[1750135231149,0.98798449,655.58,655.46,1.173]
[1750135231349,0.98798449,655.57,655.46,1.173]
[1750135231650,0.98604662,655.56,655.46,1.173]
[1750135231848,0.98604662,655.6,655.46,1.173]
[1750135232053,0.98604662,655.59,655.46,1.173]
[1750135232253,0.98604662,655.58,655.46,1.173]
[1750135232450,0.98604662,655.57,655.46,1.173]
[1750135232652,0.51801403,655.61,655.46,1.173]
[1750135232653,0.98604662,655.56,655.46,1.173]
[1750135232855,0.98604662,655.6,655.46,1.173]
[1750135233057,0.98604662,655.59,655.46,1.173]
[1750135233252,0.98604662,655.58,655.46,1.173]
[1750135233455,0.98604662,655.57,655.46,1.173]
[1750135233751,0.98604662,655.56,655.46,1.173]
[1750135233952,0.98604662,655.6,655.46,1.173]
[1750135234157,0.98604662,655.59,655.46,1.173]
[1750135234453,0.98600152,655.58,655.46,1.173]
[1750135234758,0.98600152,655.57,655.46,1.173]
[1750135234953,0.98600152,655.61,655.46,1.173]
[1750135235256,0.98600152,655.6,655.46,1.173]
[1750135235457,0.98600152,655.59,655.46,1.173]
[1750135235756,0.98600152,655.58,655.46,1.173]
[1750135236051,0.98600152,655.57,655.46,1.173]
[1750135236254,0.98600152,655.61,655.46,1.173]
[1750135236455,0.98600152,655.6,655.46,1.173]
[1750135236655,0.98600152,655.59,655.46,1.173]
[1750135236856,0.98600152,655.58,655.46,1.173]
[1750135237057,1.13687044,655.73,655.46,1.173]
[1750135237254,0.98601234,655.72,655.46,1.173]
[1750135237459,0.98601234,655.71,655.46,1.173]
[1750135237659,0.98601234,655.7,655.46,1.173]
[1750135237857,0.98601234,655.69,655.46,1.173]
[1750135238056,0.98601234,655.68,655.46,1.173]
[1750135238262,0.98601234,655.67,655.46,1.173]
[1750135238458,0.98601234,655.72,655.46,1.173]
[1750135238662,0.98601234,655.71,655.46,1.173]
[1750135238862,0.98601234,655.7,655.46,1.173]
[1750135239065,0.98601234,655.69,655.46,1.173]
[1750135239361,0.98601234,655.68,655.46,1.173]
[1750135239560,0.98601234,655.72,655.46,1.173]
[1750135239764,0.98601234,655.71,655.46,1.173]
[1750135240071,0.98601234,655.7,655.46,1.173]
[1750135240267,0.98601234,655.72,655.46,1.173]
[1750135240666,0.98601234,655.74,655.46,1.173]
[1750135240861,0.98618843,655.73,655.46,1.173]
[1750135241062,0.98618843,655.78,655.46,1.173]
[1750135241264,0.98618843,655.77,655.46,1.173]
[1750135241464,0.98618843,655.76,655.46,1.173]
[1750135241761,0.98618843,655.75,655.46,1.173]
[1750135242065,0.98618843,655.74,655.46,1.173]
[1750135242365,0.98618843,655.78,655.46,1.173]
[1750135242562,0.98618843,655.77,655.46,1.173]
[1750135242863,0.98629287,655.76,655.46,1.173]
[1750135243164,0.98629287,655.75,655.46,1.173]
[1750135243365,0.98629287,655.74,655.46,1.173]
[1750135243560,0.98629287,655.73,655.46,1.173]
[1750135243760,0.98629287,655.78,655.46,1.173]
[1750135243960,0.98629287,655.77,655.46,1.173]
[1750135244163,0.98629287,655.76,655.46,1.173]
[1750135244364,0.98629287,655.75,655.46,1.173]
[1750135244562,0.98629287,655.74,655.46,1.173]
[1750135244762,0.98629287,655.73,655.46,1.173]
[1750135244964,0.98629287,655.78,655.46,1.173]
[1750135245166,0.98629287,655.77,655.46,1.173]
[1750135245363,0.98629287,655.76,655.46,1.173]
[1750135245568,0.98629287,655.75,655.46,1.173]
[1750135245864,0.9863861,655.74,655.46,1.173]
[1750135246068,0.9863861,655.73,655.46,1.173]
[1750135246367,0.9863861,655.78,655.46,1.173]
[1750135246568,0.9863861,655.77,655.46,1.173]
[1750135246767,0.9863861,655.76,655.46,1.173]
[1750135246968,2.12325654,655.75,655.46,1.173]
[1750135247265,1.50460202,655.74,655.46,1.173]
[1750135247470,0.9863861,655.73,655.46,1.173]
[1750135247669,0.9863861,655.72,655.46,1.173]
[1750135247868,0.9863861,655.71,655.46,1.173]
[1750135248169,0.9863861,655.7,655.46,1.173]
[1750135248364,0.9863861,655.69,655.46,1.173]
[1750135248572,0.9863861,655.68,655.46,1.173]
[1750135248767,0.9863861,655.73,655.46,1.173]
[1750135248965,0.9863861,655.72,655.46,1.173]
[1750135249165,0.9863861,655.71,655.46,1.173]
[1750135249363,0.9863861,655.7,655.46,1.173]
[1750135249566,0.9863861,655.69,655.46,1.173]
[1750135249766,0.9863861,655.68,655.46,1.173]
[1750135249965,0.9863861,655.73,655.46,1.173]
[1750135250165,0.9863861,655.72,655.46,1.173]
[1750135250368,0.9863861,655.71,655.46,1.173]
[1750135250668,0.9863861,655.7,655.46,1.173]
[1750135250868,0.9863861,655.69,655.46,1.173]
[1750135251066,0.9863861,655.68,655.46,1.173]
[1750135251265,0.9863861,655.67,655.46,1.173]
[1750135251463,0.9863861,655.66,655.46,1.173]
[1750135251669,0.9863861,655.65,655.46,1.173]
[1750135251966,0.98656292,655.64,655.46,1.173]
[1750135252268,0.98656292,655.63,655.46,1.173]
[1750135252470,0.98656292,655.62,655.46,1.173]
[1750135252769,0.98656292,655.67,655.46,1.173]
[1750135252966,0.98656292,655.66,655.46,1.173]
[1750135253168,0.98656292,655.65,655.46,1.173]
[1750135253366,0.98656292,655.64,655.46,1.173]
[1750135253570,0.98656292,655.63,655.46,1.173]
[1750135253767,0.98656292,655.62,655.46,1.173]
[1750135253967,0.98656292,655.61,655.46,1.173]
[1750135254271,0.98656292,655.67,655.46,1.173]
[1750135254466,0.98656292,655.66,655.46,1.173]
[1750135254669,0.98656292,655.65,655.46,1.173]
[1750135254868,0.98656292,655.64,655.46,1.173]
[1750135255072,0.98656292,655.63,655.46,1.173]
[1750135255272,0.98656292,655.62,655.46,1.173]
[1750135255569,0.98656292,655.61,655.46,1.173]
[1750135255771,0.98656292,655.6,655.46,1.173]
[1750135255969,0.98656292,655.59,655.46,1.173]
[1750135256167,0.98656292,655.58,655.46,1.173]
[1750135256369,0.98656292,655.57,655.46,1.173]
[1750135256572,0.98656292,655.64,655.46,1.173]
[1750135256772,0.98656292,655.63,655.46,1.173]
[1750135256973,0.51826178,655.65,655.46,1.173]
[1750135257274,0.98519148,655.64,655.46,1.173]
[1750135257469,2.12206192,655.63,655.46,1.173]
[1750135257774,1.50353195,655.62,655.46,1.173]
[1750135257973,0.98516636,655.61,655.46,1.173]
[1750135258169,0.98516636,655.6,655.46,1.173]
[1750135258473,0.98516636,655.59,655.46,1.173]
[1750135258671,0.98516636,655.58,655.46,1.173]
[1750135258874,0.98516636,655.57,655.46,1.173]
[1750135259174,0.98516636,655.56,655.46,1.173]
[1750135259376,0.98516636,655.55,655.46,1.173]
[1750135259674,0.98516636,655.61,655.46,1.173]
[1750135259878,0.98516636,655.6,655.46,1.173]
[1750135260070,0.98516636,655.59,655.46,1.173]
[1750135260275,0.98516636,655.58,655.46,1.173]
[1750135260477,0.51842643,655.62,655.46,1.173]
[1750135260478,0.98516636,655.57,655.46,1.173]
[1750135260673,0.98516636,655.56,655.46,1.173]
[1750135260873,0.98516636,655.55,655.46,1.173]
[1750135261076,0.98531828,655.54,655.46,1.173]
[1750135261272,0.98531828,655.53,655.46,1.173]
[1750135261476,0.98531828,655.6,655.46,1.173]
[1750135261673,0.98531828,655.59,655.46,1.173]
[1750135261873,0.98531828,655.58,655.46,1.173]
[1750135262072,0.98531828,655.57,655.46,1.173]
[1750135262277,0.98531828,655.56,655.46,1.173]
[1750135262478,0.98510887,655.55,655.46,1.173]
[1750135262776,0.98510887,655.54,655.46,1.173]
[1750135262973,0.98510887,655.53,655.46,1.173]
[1750135263273,0.98510887,655.52,655.45,1.022]
[1750135263479,0.98510887,655.6,655.45,1.022]
[1750135263673,0.98510887,655.59,655.45,1.022]
[1750135263874,0.98510887,655.58,655.45,1.022]
[1750135264074,0.98510887,655.57,655.45,1.022]
[1750135264278,0.98510887,655.56,655.45,1.022]
[1750135264475,0.98510887,655.55,655.45,1.022]
[1750135264778,0.98510887,655.54,655.34,1.211]
[1750135265078,0.98510887,655.53,655.34,1.211]
[1750135265380,0.98510887,655.52,655.34,1.211]
[1750135265578,0.98510887,655.6,655.35,1.129]
[1750135265777,0.98510887,655.59,655.35,1.129]
[1750135265975,0.98510887,655.58,655.35,1.129]
[1750135266175,0.98510887,655.57,655.35,1.129]
[1750135266377,0.98510887,655.56,655.35,1.129]
[1750135266674,0.98510887,655.55,655.35,1.129]
[1750135266879,0.98510887,655.54,655.35,1.129]
[1750135267080,0.98510887,655.53,655.35,1.129]
[1750135267281,0.9852371,655.52,655.36,0.901]
[1750135267576,0.9852371,655.6,655.36,0.901]
[1750135267880,0.9852371,655.59,655.36,0.901]
[1750135268076,0.98523451,655.58,655.36,0.901]
[1750135268278,0.98523451,655.57,655.36,0.901]
[1750135268578,0.98523451,655.56,655.36,0.901]
[1750135268779,0.98523451,655.55,655.36,0.901]
[1750135268977,0.98523451,655.54,655.36,0.901]
[1750135269178,0.98523451,655.53,655.36,0.901]
[1750135269485,0.98523451,655.52,655.36,0.901]
[1750135269678,0.98523451,655.6,655.36,0.901]
[1750135269878,0.98523451,655.59,655.36,0.901]
[1750135270078,0.98523451,655.58,655.36,0.901]
[1750135270276,0.98523451,655.57,655.36,0.901]
[1750135270477,0.98523451,655.56,655.36,0.901]
[1750135270682,0.98523451,655.55,655.36,0.901]
[1750135270882,0.98523451,655.54,655.36,0.901]
[1750135271081,0.98523574,655.53,655.36,0.901]
[1750135271280,0.98523574,655.6,655.36,0.901]
[1750135271484,0.98523574,655.59,655.36,0.901]
[1750135271684,0.98523574,655.58,655.36,0.901]
[1750135271884,0.98523574,655.57,655.36,0.901]
[1750135272085,0.98523574,655.56,655.36,0.901]
[1750135272386,0.98523574,655.55,655.36,0.901]
[1750135272582,0.98523574,655.63,655.36,0.901]
[1750135272786,0.98523574,655.62,655.36,0.901]
[1750135272981,0.98523574,655.61,655.36,0.901]
[1750135273180,0.98523574,655.6,655.36,0.901]
[1750135273383,0.98523574,655.59,655.36,0.901]
[1750135273583,0.98523574,655.58,655.36,0.901]
[1750135273787,0.98523574,655.57,655.36,0.901]
[1750135274084,0.98523412,655.56,655.36,0.901]
[1750135274285,0.98523412,655.55,655.36,0.901]
[1750135274484,0.98523412,655.63,655.36,0.901]
[1750135274686,0.98523412,655.62,655.36,0.901]
[1750135274884,0.98523412,655.61,655.36,0.901]
[1750135275185,0.98523412,655.6,655.36,0.901]
[1750135275388,0.98523412,655.59,655.36,0.901]
[1750135275588,0.98523412,655.58,655.36,0.901]
[1750135275785,0.98523412,655.57,655.36,0.901]
[1750135275985,0.98523412,655.56,655.36,0.901]
[1750135276189,0.98523412,655.55,655.36,0.901]
[1750135276388,0.98523412,655.54,655.36,0.901]
[1750135276590,0.98523412,655.62,655.36,0.901]
[1750135276788,0.98523412,655.61,655.36,0.901]
[1750135276987,0.98523412,655.6,655.36,0.901]
[1750135277292,0.98523412,655.59,655.36,0.901]
[1750135277490,0.98523412,655.58,655.36,0.901]
[1750135277694,0.98523412,655.57,655.36,0.901]
[1750135277893,0.98523412,655.56,655.36,0.901]
[1750135278091,0.98523412,655.55,655.36,0.901]
[1750135278290,0.98523412,655.54,655.36,0.901]
[1750135278590,0.51838239,655.63,655.36,0.901]
[1750135278591,0.98523412,655.62,655.36,0.901]
[1750135278789,0.98523412,655.61,655.36,0.901]
[1750135278993,0.98523412,655.6,655.36,0.901]
[1750135279193,0.98523412,655.59,655.36,0.901]
[1750135279390,0.98523412,655.58,655.36,0.901]
[1750135279594,0.98523412,655.57,655.36,0.901]
[1750135279796,0.98523412,655.56,655.36,0.901]
[1750135279992,0.98523412,655.55,655.36,0.901]
[1750135280191,0.98523412,655.62,655.36,0.901]
[1750135280394,0.98523412,655.61,655.36,0.901]
[1750135280593,0.98523412,655.6,655.36,0.901]
[1750135280798,0.98523412,655.59,655.36,0.901]
[1750135281093,0.98523412,655.58,655.36,0.901]
[1750135281297,0.98523412,655.57,655.36,0.901]
[1750135281596,0.98523412,655.56,655.36,0.901]
[1750135281897,0.98523412,655.55,655.36,0.901]
[1750135282098,0.98523412,655.54,655.36,0.901]
[1750135282299,0.98523412,655.53,655.36,0.901]
[1750135282499,0.98528766,655.61,655.36,0.901]
[1750135282694,0.98528766,655.6,655.36,0.901]
[1750135282997,0.98528766,655.59,655.36,0.901]
[1750135283196,0.98528766,655.58,655.36,0.901]
[1750135283394,0.98528766,655.57,655.36,0.901]
[1750135283595,0.98528766,655.56,655.36,0.901]
[1750135283794,0.98528766,655.61,655.36,0.901]
[1750135283997,0.98528766,655.6,655.36,0.901]
[1750135284197,0.98528766,655.59,655.36,0.901]
[1750135284395,0.98528766,655.58,655.36,0.901]
[1750135284594,0.98528766,655.57,655.36,0.901]
[1750135284798,0.98528766,655.64,655.36,0.901]
[1750135284996,0.98528766,655.63,655.36,0.901]
[1750135285200,0.98528766,655.62,655.36,0.901]
[1750135285499,0.98537755,655.61,655.36,0.901]
[1750135285700,0.98537755,655.6,655.36,0.901]
[1750135285897,0.98537755,655.67,655.36,0.901]
[1750135286109,0.98537755,655.66,655.36,0.901]
[1750135286307,0.98537755,655.65,655.36,0.901]
[1750135286508,0.98537755,655.69,655.36,0.901]
[1750135286808,0.98537755,655.72,655.36,0.901]
[1750135287107,0.98537755,655.71,655.36,0.901]
[1750135287308,0.98537755,655.7,655.36,0.901]
[1750135287506,0.98537755,655.69,655.36,0.901]
[1750135287705,0.98537755,655.75,655.36,0.901]
[1750135287909,0.98537755,655.74,655.36,0.901]
[1750135288107,0.98677409,655.73,655.36,0.901]
[1750135288408,0.98677409,655.72,655.36,0.901]
[1750135288606,0.98677409,655.71,655.36,0.901]
[1750135288804,0.98677409,655.7,655.36,0.901]
[1750135289009,0.98677409,655.76,655.36,0.901]
[1750135289207,0.98677409,655.75,655.36,0.901]
[1750135289407,0.98677409,655.74,655.36,0.901]
[1750135289605,0.98677409,655.73,655.36,0.901]
[1750135289809,0.98677409,655.72,655.37,1.034]
[1750135290007,0.98677409,655.71,655.37,1.034]
[1750135290208,0.98677409,655.7,655.37,1.034]
[1750135290506,0.98677409,655.76,655.37,1.034]
[1750135290708,0.98677409,655.75,655.37,1.034]
[1750135290910,0.98677409,655.74,655.37,1.034]
[1750135291106,0.98653901,655.73,655.37,1.034]
[1750135291306,0.98653901,655.72,655.37,1.034]
[1750135291512,0.98653901,655.71,655.37,1.034]
[1750135291710,0.98653901,655.7,655.37,1.034]
[1750135292010,0.98655469,655.76,655.37,1.034]
[1750135292209,0.98655469,655.75,655.37,1.034]
[1750135292408,0.98655469,655.74,655.37,1.034]
[1750135292604,0.98655469,655.73,655.37,1.034]
[1750135292905,0.98655469,655.72,655.37,1.034]
[1750135293107,0.98655469,655.71,655.37,1.034]
[1750135293306,0.98655469,655.77,655.37,1.034]
[1750135293609,0.98655469,655.76,655.37,1.034]
[1750135293809,1.13913882,655.79,655.37,1.034]
[1750135294110,0.98637437,655.78,655.37,1.034]
[1750135294304,0.98637437,655.77,655.37,1.034]
[1750135294508,0.98637437,655.76,655.37,1.034]
[1750135294705,0.51794402,655.78,655.37,1.034]
[1750135294706,0.98637437,655.75,655.37,1.034]
[1750135295010,0.98637437,655.74,655.37,1.034]
[1750135295209,0.98637437,655.73,655.37,1.034]
[1750135295509,0.98637437,655.72,655.37,1.034]
[1750135295809,0.98637437,655.71,655.37,1.034]
[1750135296003,0.98637437,655.7,655.37,1.034]
[1750135296207,0.98637437,655.76,655.37,1.034]
[1750135296406,0.98637437,655.75,655.38,1.131]
[1750135296609,0.98637437,655.74,655.38,1.131]
[1750135296806,0.9862692,655.73,655.38,1.131]
[1750135297013,0.9862692,655.72,655.39,0.89]
[1750135297213,0.9862692,655.71,655.39,0.89]
[1750135297410,0.9862692,655.7,655.39,0.89]
[1750135297616,0.9862692,655.76,655.39,0.89]
[1750135297818,0.9862692,655.75,655.39,0.89]
[1750135298018,0.9862692,655.74,655.39,0.89]
[1750135298217,0.9862692,655.73,655.39,0.89]
[1750135298518,0.9862692,655.78,655.39,0.89]
[1750135298718,0.9862692,655.77,655.39,0.89]
[1750135299014,0.9862692,655.76,655.39,0.89]
[1750135299218,0.9862692,655.75,655.39,0.89]
[1750135299414,0.9862692,655.74,655.39,0.89]
[1750135299715,0.98617807,655.73,655.39,0.89]
[1750135299919,0.98617807,655.78,655.39,0.89]
[1750135300120,0.98617807,655.77,655.39,0.89]
[1750135300319,0.98617807,655.76,655.39,0.89]
[1750135300519,0.98617807,655.75,655.39,0.89]
[1750135300722,0.98617807,655.74,655.39,0.89]
[1750135301022,0.98617807,655.73,655.39,0.89]
[1750135301320,0.98617807,655.78,655.39,0.89]
[1750135301519,0.98617807,655.77,655.39,0.89]
[1750135301722,0.98617807,655.76,655.39,0.89]
[1750135301920,0.98617807,655.75,655.39,0.89]
[1750135302222,0.98617807,655.74,655.4,1.102]
[1750135302420,0.98617807,655.78,655.4,1.102]
[1750135302618,0.98605172,655.77,655.4,1.102]
[1750135302821,0.517804,655.8,655.4,1.102]
[1750135302822,0.98605172,655.76,655.4,1.102]
[1750135303019,0.98605172,655.75,655.4,1.102]
[1750135303223,0.98605172,655.74,655.4,1.102]
[1750135303420,0.98605172,655.78,655.4,1.102]
[1750135303722,0.98605172,655.77,655.4,1.102]
[1750135303924,0.98605172,655.76,655.4,1.102]
[1750135304122,0.98605172,655.75,655.4,1.102]
[1750135304324,0.98605172,655.74,655.4,1.102]
[1750135304621,0.98605172,655.78,655.4,1.102]
[1750135304821,0.98605172,655.77,655.4,1.102]
[1750135305025,0.98605172,655.76,655.4,1.102]
[1750135305220,0.98605172,655.75,655.4,1.102]
[1750135305426,0.98592738,655.79,655.4,1.102]
[1750135305621,0.98592738,655.78,655.4,1.102]
[1750135305921,0.98592738,655.77,655.4,1.102]
[1750135306222,0.98592738,655.76,655.4,1.102]
[1750135306424,0.98592608,655.75,655.4,1.102]
[1750135306620,0.98592608,655.74,655.4,1.102]
[1750135306824,0.98592608,655.79,655.4,1.102]
[1750135307024,0.98592608,655.78,655.4,1.102]
[1750135307221,0.98592608,655.77,655.4,1.102]
[1750135307425,0.98592608,655.76,655.4,1.102]
[1750135307722,0.98592608,655.75,655.4,1.102]
[1750135307920,0.98592608,655.74,655.4,1.102]
[1750135308120,0.98592608,655.73,655.4,1.102]
[1750135308323,0.98587734,655.72,655.4,1.102]
[1750135308522,0.98587734,655.71,655.4,1.102]
[1750135308824,1.50356296,655.76,655.4,1.102]
[1750135309020,0.98587734,655.75,655.4,1.102]
[1750135309220,0.98587734,655.74,655.4,1.102]
[1750135309425,0.98587734,655.73,655.4,1.102]
[1750135309621,0.98587734,655.72,655.4,1.102]
[1750135309922,0.98587734,655.71,655.4,1.102]
[1750135310120,0.98587734,655.75,655.4,1.102]
[1750135310425,0.98587734,655.74,655.4,1.102]
[1750135310725,0.98587734,655.73,655.4,1.102]
[1750135311026,0.98587734,655.72,655.4,1.102]
[1750135311248,0.98585762,655.75,655.4,1.102]
[1750135311421,0.98585762,655.74,655.4,1.102]
[1750135311621,0.98585762,655.73,655.4,1.102]
[1750135311820,0.98585762,655.72,655.4,1.102]
[1750135312021,0.98585762,655.76,655.4,1.102]
[1750135312221,0.98585762,655.75,655.4,1.102]
[1750135312422,0.98585762,655.74,655.4,1.102]
[1750135312626,0.98585762,655.73,655.4,1.102]
[1750135312823,0.98585762,655.72,655.4,1.102]
[1750135313023,0.98585762,655.75,655.4,1.102]
[1750135313223,0.98585762,655.74,655.4,1.102]
[1750135313429,0.26543408,655.81,655.4,1.102]
[1750135313430,0.98585762,655.73,655.4,1.102]
[1750135313626,0.98585762,655.75,655.4,1.102]
[1750135313825,2.27853007,656.01,655.4,1.102]
[1750135313826,0.98585762,655.74,655.4,1.102]
[1750135314023,0.98581905,655.77,655.4,1.102]
[1750135314221,0.98581905,655.76,655.4,1.102]
[1750135314429,0.98575969,655.78,655.4,1.102]
[1750135314623,1.50337615,655.82,655.4,1.102]
[1750135314926,0.98575969,655.81,655.4,1.102]
[1750135315126,0.98575969,655.8,655.4,1.102]
[1750135315327,0.98575969,655.84,655.4,1.102]
[1750135315623,0.98575969,655.83,655.4,1.102]
[1750135315928,0.98575969,655.82,655.4,1.102]
[1750135316126,0.98575969,655.81,655.4,1.102]
[1750135316323,0.98575969,655.84,655.4,1.102]
[1750135316527,0.98575969,655.83,655.4,1.102]
[1750135316726,0.51761646,655.86,655.4,1.102]
[1750135316924,0.98557987,655.85,655.4,1.102]
[1750135317127,0.98557987,655.84,655.41,0.918]
[1750135317329,0.98557987,655.83,655.41,0.918]
[1750135317628,0.98557987,655.85,655.41,0.918]
[1750135317828,0.98557987,655.84,655.41,0.918]
[1750135318129,0.98557987,655.83,655.41,0.918]
[1750135318326,0.98557987,655.85,655.41,0.918]
[1750135318525,0.98557987,655.84,655.41,0.918]
[1750135318828,0.98557987,655.83,655.41,0.918]
[1750135319023,0.98557987,655.85,655.41,0.918]
[1750135319227,0.98557987,655.84,655.41,0.918]
[1750135319431,0.98557987,655.83,655.41,0.918]
[1750135319630,0.98723871,655.85,655.41,0.918]
[1750135319829,0.98723871,655.84,655.41,0.918]
[1750135320028,0.98723871,655.83,655.41,0.918]
[1750135320227,0.51761646,655.86,655.41,0.918]
[1750135320228,0.98723871,655.85,655.41,0.918]
[1750135320429,1.50485517,655.89,655.41,0.918]
[1750135320731,1.50485517,655.94,655.41,0.918]
[1750135320927,1.50485517,655.95,655.41,0.918]
[1750135321128,0.98723871,655.94,655.41,0.918]
[1750135321329,1.50485517,655.95,655.41,0.918]
[1750135321530,0.26538044,655.97,655.41,0.918]
[1750135321727,1.50549012,656.04,655.41,0.918]
[1750135321927,0.26535008,656.07,655.41,0.918]
[1750135329234,0.26535008,656.07,655.42,1.067]
[1750135330335,0.26535008,656.07,655.43,0.952]
[1750135337140,0.26535008,656.07,655.44,0.826]
[1750135338544,0.26535008,656.07,655.45,0.957]
[1750135339140,1.13913882,656.22,655.45,0.957]
[1750135339342,0.26530153,656.17,655.45,0.957]
[1750135339545,0.98435466,656.16,655.45,0.957]
[1750135341144,0.26530153,656.17,655.45,0.957]
[1750135341348,0.98450056,656.16,655.45,0.957]
[1750135343049,0.98450056,656.15,655.45,0.957]
[1750135343250,0.98450056,656.16,655.45,0.957]
[1750135343452,0.98450056,656.15,655.45,0.957]
[1750135343646,0.98450056,656.16,655.45,0.957]
[1750135343850,0.98450056,656.15,655.45,0.957]
[1750135344050,0.98450056,656.16,655.45,0.957]
[1750135344247,0.98450056,656.15,655.45,0.957]
[1750135344548,0.98450056,656.16,655.45,0.957]
[1750135344852,0.98425476,656.15,655.45,0.957]
[1750135345050,0.98425476,656.16,655.45,0.957]
[1750135345252,0.98425476,656.15,655.45,0.957]
[1750135345452,0.98425476,656.16,655.45,0.957]
[1750135345652,0.98425476,656.15,655.45,0.957]
[1750135345952,0.98425476,656.16,655.45,0.957]
[1750135346149,0.98425476,656.15,655.45,0.957]
[1750135346347,0.98425476,656.16,655.45,0.957]
[1750135346548,0.98425476,656.15,655.45,0.957]
[1750135346750,0.98425476,656.16,655.45,0.957]
[1750135346948,0.98425476,656.15,655.45,0.957]
[1750135347150,0.98425476,656.14,655.45,0.957]
[1750135347348,0.98425476,656.16,655.45,0.957]
[1750135347653,0.98425476,656.15,655.45,0.957]
[1750135347850,0.98605735,656.14,655.45,0.957]
[1750135348051,0.98605735,656.16,655.45,0.957]
[1750135348252,0.98605735,656.15,655.45,0.957]
[1750135348451,0.98605735,656.14,655.45,0.957]
[1750135348652,0.98605735,656.16,655.45,0.957]
[1750135348851,0.98605735,656.15,655.45,0.957]
[1750135349053,0.98605735,656.14,655.45,0.957]
[1750135349254,0.98605735,656.13,655.45,0.957]
[1750135349451,0.98605735,656.16,655.45,0.957]
[1750135349654,0.98605735,656.15,655.46,1.1426354]
[1750135349854,0.98605735,656.14,655.45,2.0996354]
[1750135350052,0.26530153,656.17,655.45,2.0996354]
[1750135350253,0.98601062,656.16,655.45,2.0996354]
[1750135350453,0.26530153,656.17,655.45,2.0996354]
[1750135350454,0.98601062,656.15,655.45,0.957]
[1750135350653,0.98601186,656.14,655.46,1.126]
[1750135350858,0.98601186,656.16,655.46,1.126]
[1750135351053,0.98601186,656.15,655.46,1.126]
[1750135351257,0.98601186,656.14,655.46,1.126]
[1750135351557,0.98601186,656.16,655.46,1.126]
[1750135351854,0.98601186,656.15,655.46,1.126]
[1750135352052,0.98601186,656.14,655.46,1.126]
[1750135352256,0.98601186,656.16,655.46,1.126]
[1750135352455,0.98601186,656.15,655.46,1.126]
[1750135352654,0.98601186,656.14,655.46,1.126]
[1750135352956,0.98601186,656.16,655.46,1.126]
[1750135353153,0.98601186,656.15,655.46,1.126]
[1750135353354,0.98601186,656.14,655.46,1.126]
[1750135353556,0.9860449,656.16,655.46,1.126]
[1750135353853,0.26530153,656.17,655.46,1.126]